[Event "Open Gent FIDE-rated 2023"]
[Site "Gent, Belgium"]
[Date "2023.07.18"]
[Round "8.4"]
[White "Goudriaan, Etienne"]
[Black "Dreelinck, Jacob"]
[Result "0-1"]
[TimeControl "90'+30''"]
[WhiteTitle "IM"]
[WhiteElo "2322"]
[BlackElo "2089"]

1. Nf3 {[%clk 01:30:56]} {[%emt 00:00:03]} Nf6 {[%clk 01:30:56]} {[%emt
00:00:04]} 2. g3 {[%clk 01:31:19]} {[%emt 00:00:07]} g6 {[%clk 01:31:23]}
{[%emt 00:00:03]} 3. Bg2 {[%clk 01:31:43]} {[%emt 00:00:05]} Bg7 {[%clk
01:31:51]} {[%emt 00:00:03]} 4. O-O {[%clk 01:31:41]} {[%emt 00:00:31]} O-O
{[%clk 01:32:18]} {[%emt 00:00:04]} 5. c4 {[%clk 01:32:08]} {[%emt 00:00:03]}
d6 {[%clk 01:32:45]} {[%emt 00:00:03]} 6. d4 {[%clk 01:32:27]} {[%emt
00:00:11]} Nbd7 {[%clk 01:33:09]} {[%emt 00:00:06]} 7. Nc3 {[%clk 01:29:01]}
{[%emt 00:03:56]} e5 {[%clk 01:33:35]} {[%emt 00:00:05]} 8. e4 {[%clk
01:28:23]} {[%emt 00:01:08]} exd4 {[%clk 01:33:58]} {[%emt 00:00:07]} 9. Nxd4
{[%clk 01:28:48]} {[%emt 00:00:05]} Re8 {[%clk 01:34:25]} {[%emt 00:00:04]} 10.
h3 {[%clk 01:26:53]} {[%emt 00:02:25]} Nc5 {[%clk 01:34:51]} {[%emt 00:00:04]}
11. Re1 {[%clk 01:27:03]} {[%emt 00:00:20]} h6 {[%clk 01:34:15]} {[%emt
00:01:06]} 12. Rb1 {[%clk 01:24:00]} {[%emt 00:03:33]} Bd7 {[%clk 01:34:14]}
{[%emt 00:00:32]} 13. b3 {[%clk 01:18:09]} {[%emt 00:06:20]} a5 {[%clk
01:34:41]} {[%emt 00:00:03]} 14. Ndb5 {[%clk 01:11:08]} {[%emt 00:07:31]} Qc8
{[%clk 01:18:58]} {[%emt 00:16:13]} 15. Kh2 {[%clk 01:08:10]} {[%emt 00:03:28]}
Bxb5 {[%clk 01:15:10]} {[%emt 00:04:17]} 16. cxb5 {[%clk 01:04:53]} {[%emt
00:03:47]} Ng4+ {[%clk 01:11:58]} {[%emt 00:03:42]} 17. hxg4 {[%clk 01:02:51]}
{[%emt 00:02:31]} Bxc3 {[%clk 01:12:23]} {[%emt 00:00:05]} 18. Rh1 {[%clk
00:53:36]} {[%emt 00:09:45]} Bg7 {[%clk 01:03:58]} {[%emt 00:08:55]} 19. f3
{[%clk 00:48:50]} {[%emt 00:05:16]} Qe6 {[%clk 00:53:48]} {[%emt 00:10:40]} 20.
Be3 {[%clk 00:45:17]} {[%emt 00:04:03]} a4 {[%clk 00:46:36]} {[%emt 00:07:43]}
21. b4 {[%clk 00:43:28]} {[%emt 00:02:19]} Nd7 {[%clk 00:47:05]} {[%emt
00:00:01]} 22. Qd2 {[%clk 00:40:07]} {[%emt 00:03:51]} d5 {[%clk 00:40:53]}
{[%emt 00:06:43]} 23. Bxh6 {[%clk 00:30:15]} {[%emt 00:10:21]} dxe4 {[%clk
00:38:26]} {[%emt 00:02:57]} 24. Rhe1 {[%clk 00:29:17]} {[%emt 00:01:27]} Bxh6
{[%clk 00:36:18]} {[%emt 00:02:38]} 25. Qxh6 {[%clk 00:29:14]} {[%emt
00:00:33]} Qxa2 {[%clk 00:34:40]} {[%emt 00:02:09]} 26. f4 {[%clk 00:26:28]}
{[%emt 00:03:15]} Nf6 {[%clk 00:33:21]} {[%emt 00:01:48]} 27. Kh3 {[%clk
00:26:54]} {[%emt 00:00:04]} Qd2 {[%clk 00:20:32]} {[%emt 00:13:20]} 28. Rbd1
{[%clk 00:25:55]} {[%emt 00:01:29]} Qxb4 {[%clk 00:20:22]} {[%emt 00:00:40]} 29.
f5 {[%clk 00:25:23]} {[%emt 00:01:02]} Qf8 {[%clk 00:16:55]} {[%emt 00:03:57]}
30. Qh4 {[%clk 00:22:40]} {[%emt 00:03:13]} g5 {[%clk 00:14:05]} {[%emt
00:03:20]} 31. Qxg5+ {[%clk 00:22:48]} {[%emt 00:00:21]} Qg7 {[%clk 00:14:35]}
{[%emt 00:00:01]} 32. Qxg7+ {[%clk 00:23:02]} {[%emt 00:00:16]} Kxg7 {[%clk
00:15:00]} {[%emt 00:00:04]} 33. g5 {[%clk 00:23:13]} {[%emt 00:00:19]} Rh8#
{[%emt 00:00:04]} 0-1

[Event "Open Gent FIDE-rated 2023"]
[Site "Gent, Belgium"]
[Date "2023.07.19"]
[Round "9.1"]
[White "Dreelinck, Adriaan"]
[Black "Ikonnikov, Vyacheslav"]
[Result "1/2-1/2"]
[TimeControl "90'+30''"]
[BlackTitle "GM"]
[WhiteElo "2214"]
[BlackElo "2467"]

1. d4 {[%clk 01:30:56]} {[%emt 00:00:04]} d5 {[%clk 01:30:44]} {[%emt
00:00:16]} 2. c4 {[%clk 01:31:17]} {[%emt 00:00:08]} e6 {[%clk 01:31:07]}
{[%emt 00:00:08]} 3. Nc3 {[%clk 01:31:37]} {[%emt 00:00:10]} a6 {[%clk
01:31:19]} {[%emt 00:00:18]} 4. cxd5 {[%clk 01:31:35]} {[%emt 00:00:31]} exd5
{[%clk 01:31:45]} {[%emt 00:00:04]} 5. Bf4 {[%clk 01:31:55]} {[%emt 00:00:10]}
Nf6 {[%clk 01:31:50]} {[%emt 00:00:24]} 6. e3 {[%clk 01:32:07]} {[%emt
00:00:18]} Bd6 {[%clk 01:23:04]} {[%emt 00:09:16]} 7. Bxd6 {[%clk 01:31:38]}
{[%emt 00:00:59]} Qxd6 {[%clk 01:23:30]} {[%emt 00:00:04]} 8. Bd3 {[%clk
01:31:55]} {[%emt 00:00:13]} O-O {[%clk 01:23:12]} {[%emt 00:00:49]} 9. h3
{[%clk 01:31:14]} {[%emt 00:01:11]} Re8 {[%clk 01:20:14]} {[%emt 00:03:27]} 10.
Nf3 {[%clk 01:31:10]} {[%emt 00:00:34]} Nbd7 {[%clk 01:15:03]} {[%emt
00:05:42]} 11. O-O {[%clk 01:29:05]} {[%emt 00:02:35]} Nf8 {[%clk 01:09:30]}
{[%emt 00:06:02]} 12. Qc2 {[%clk 01:24:12]} {[%emt 00:05:24]} c6 {[%clk
01:08:50]} {[%emt 00:01:10]} 13. Na4 {[%clk 01:16:15]} {[%emt 00:08:27]} Ne4
{[%clk 01:02:44]} {[%emt 00:06:35]} 14. Bxe4 {[%clk 00:59:06]} {[%emt
00:17:41]} Rxe4 {[%clk 01:00:26]} {[%emt 00:02:47]} 15. Nc5 {[%clk 00:54:07]}
{[%emt 00:05:29]} Re7 {[%clk 00:59:49]} {[%emt 00:01:06]} 16. b4 {[%clk
00:53:08]} {[%emt 00:01:30]} a5 {[%clk 00:38:37]} {[%emt 00:21:42]} 17. a3
{[%clk 00:36:31]} {[%emt 00:17:07]} g6 {[%clk 00:29:07]} {[%emt 00:09:59]} 18.
Qc3 {[%clk 00:34:16]} {[%emt 00:02:45]} Qd8 {[%clk 00:26:59]} {[%emt 00:02:38]}
19. Nb3 {[%clk 00:30:52]} {[%emt 00:03:54]} a4 {[%clk 00:26:27]} {[%emt
00:01:02]} 20. Nc5 {[%clk 00:30:18]} {[%emt 00:01:04]} b6 {[%clk 00:25:18]}
{[%emt 00:01:40]} 21. Nd3 {[%clk 00:30:19]} {[%emt 00:00:28]} Ba6 {[%clk
00:25:29]} {[%emt 00:00:19]} 22. Rfc1 {[%clk 00:28:10]} {[%emt 00:02:38]} Bb5
{[%clk 00:24:44]} {[%emt 00:01:15]} 23. Nb2 {[%clk 00:23:28]} {[%emt 00:05:12]}
f6 {[%clk 00:19:20]} {[%emt 00:05:54]} 24. Nd2 {[%clk 00:22:39]} {[%emt
00:01:19]} g5 {[%clk 00:17:42]} {[%emt 00:02:09]} 25. Qc2 {[%clk 00:22:04]}
{[%emt 00:01:06]} Qc8 {[%clk 00:17:53]} {[%emt 00:00:18]} 26. Nb1 {[%clk
00:21:27]} {[%emt 00:01:07]} Qa6 {[%clk 00:16:44]} {[%emt 00:01:39]} 27. Nc3
{[%clk 00:21:12]} {[%emt 00:00:45]} Re6 {[%clk 00:17:10]} {[%emt 00:00:04]} 28.
Qf5 {[%clk 00:15:49]} {[%emt 00:05:53]} Rd6 {[%clk 00:07:43]} {[%emt 00:09:56]}
29. Rc2 {[%clk 00:11:15]} {[%emt 00:05:04]} Ng6 {[%clk 00:07:14]} {[%emt
00:00:59]} 30. Nxb5 {[%clk 00:11:07]} {[%emt 00:00:39]} Qxb5 {[%clk 00:07:36]}
{[%emt 00:00:08]} 31. Rac1 {[%clk 00:10:46]} {[%emt 00:00:51]} Ne7 {[%clk
00:07:34]} {[%emt 00:00:32]} 32. Qd3 {[%clk 00:10:12]} {[%emt 00:01:04]} Qxd3
{[%clk 00:07:12]} {[%emt 00:00:52]} 33. Nxd3 {[%clk 00:10:37]} {[%emt
00:00:05]} b5 {[%clk 00:07:37]} {[%emt 00:00:06]} 34. Nc5 {[%clk 00:10:00]}
{[%emt 00:01:07]} 1/2-1/2

[Event "Open Gent FIDE-rated 2023"]
[Site "Gent, Belgium"]
[Date "2023.07.19"]
[Round "9.2"]
[White "Dreelinck, Jacob"]
[Black "Decker, Nils"]
[Result "1-0"]
[TimeControl "90'+30''"]
[BlackFideId "4699670"]
[WhiteElo "2089"]
[BlackElo "2109"]

1. e4 {[%clk 01:30:55]} {[%emt 00:00:04]} e6 {[%clk 01:30:43]} {[%emt
00:00:17]} 2. d4 {[%clk 01:30:57]} {[%emt 00:00:28]} d5 {[%clk 01:31:09]}
{[%emt 00:00:05]} 3. Nd2 {[%clk 01:30:48]} {[%emt 00:00:39]} c5 {[%clk
01:31:32]} {[%emt 00:00:06]} 4. exd5 {[%clk 01:31:14]} {[%emt 00:00:04]} Qxd5
{[%clk 01:31:50]} {[%emt 00:00:13]} 5. dxc5 {[%clk 01:31:29]} {[%emt 00:00:15]}
Nf6 {[%clk 01:32:07]} {[%emt 00:00:13]} 6. Ngf3 {[%clk 01:31:51]} {[%emt
00:00:07]} Qxc5 {[%clk 01:31:36]} {[%emt 00:01:02]} 7. Bd3 {[%clk 01:32:10]}
{[%emt 00:00:10]} Be7 {[%clk 01:27:53]} {[%emt 00:04:13]} 8. O-O {[%clk
01:32:34]} {[%emt 00:00:05]} O-O {[%clk 01:25:11]} {[%emt 00:03:12]} 9. a4
{[%clk 01:32:55]} {[%emt 00:00:09]} Qc7 {[%clk 01:19:56]} {[%emt 00:05:45]} 10.
Qe2 {[%clk 01:27:32]} {[%emt 00:05:53]} Nc6 {[%clk 01:10:20]} {[%emt 00:10:06]}
11. c3 {[%clk 01:23:37]} {[%emt 00:04:25]} b6 {[%clk 00:58:04]} {[%emt
00:12:46]} 12. Nb3 {[%clk 01:19:19]} {[%emt 00:04:47]} h6 {[%clk 00:50:45]}
{[%emt 00:07:49]} 13. Re1 {[%clk 01:13:55]} {[%emt 00:05:54]} Bd6 {[%clk
00:48:44]} {[%emt 00:02:31]} 14. h3 {[%clk 01:10:42]} {[%emt 00:03:43]} Bb7
{[%clk 00:47:27]} {[%emt 00:01:47]} 15. Ba6 {[%clk 01:08:49]} {[%emt 00:02:23]}
Nd5 {[%clk 00:39:17]} {[%emt 00:08:40]} 16. Bxb7 {[%clk 00:59:26]} {[%emt
00:09:53]} Qxb7 {[%clk 00:39:40]} {[%emt 00:00:07]} 17. Rd1 {[%clk 00:58:06]}
{[%emt 00:01:50]} Qc7 {[%clk 00:31:43]} {[%emt 00:08:27]} 18. Nbd4 {[%clk
00:56:12]} {[%emt 00:02:23]} Nxd4 {[%clk 00:29:18]} {[%emt 00:02:56]} 19. Nxd4
{[%clk 00:55:01]} {[%emt 00:01:40]} Bh2+ {[%clk 00:27:26]} {[%emt 00:02:23]} 20.
Kh1 {[%clk 00:54:57]} {[%emt 00:00:34]} Be5 {[%clk 00:27:36]} {[%emt 00:00:20]}
21. Nb5 {[%clk 00:53:09]} {[%emt 00:02:18]} Qb8 {[%clk 00:27:43]} {[%emt
00:00:23]} 22. Qe4 {[%clk 00:50:20]} {[%emt 00:03:19]} Bf6 {[%clk 00:23:01]}
{[%emt 00:05:12]} 23. Nd4 {[%clk 00:46:25]} {[%emt 00:04:25]} Qe5 {[%clk
00:17:12]} {[%emt 00:06:18]} 24. Qf3 {[%clk 00:46:41]} {[%emt 00:00:15]} Qc7
{[%clk 00:14:54]} {[%emt 00:02:47]} 25. Nb5 {[%clk 00:44:34]} {[%emt 00:02:37]}
Qb8 {[%clk 00:12:35]} {[%emt 00:02:49]} 26. c4 {[%clk 00:38:43]} {[%emt
00:06:21]} a6 {[%clk 00:12:16]} {[%emt 00:00:50]} 27. Nd4 {[%clk 00:34:19]}
{[%emt 00:04:54]} Ne7 {[%clk 00:09:37]} {[%emt 00:03:09]} 28. Be3 {[%clk
00:33:38]} {[%emt 00:01:11]} Ng6 {[%clk 00:07:31]} {[%emt 00:02:37]} 29. Rac1
{[%clk 00:32:51]} {[%emt 00:01:17]} Rc8 {[%clk 00:02:27]} {[%emt 00:05:34]} 30.
Qe4 {[%clk 00:32:30]} {[%emt 00:00:51]} Qe5 {[%clk 00:02:12]} {[%emt 00:00:45]}
31. Qb7 {[%clk 00:31:43]} {[%emt 00:01:17]} Qa5 {[%clk 00:01:30]} {[%emt
00:01:12]} 32. b3 {[%clk 00:30:51]} {[%emt 00:01:22]} Rab8 {[%clk 00:01:41]}
{[%emt 00:00:19]} 33. Qe4 {[%clk 00:31:00]} {[%emt 00:00:20]} Qe5 {[%clk
00:01:19]} {[%emt 00:00:53]} 34. Qf3 {[%clk 00:31:15]} {[%emt 00:00:16]} Ra8
{[%clk 00:00:49]} {[%emt 00:01:00]} 35. Ne2 {[%clk 00:29:57]} {[%emt 00:01:47]}
Bg5 {[%clk 00:00:50]} {[%emt 00:00:30]} 36. Bd4 {[%clk 00:29:01]} {[%emt
00:01:26]} Qb8 {[%clk 00:00:35]} {[%emt 00:00:45]} 37. Rb1 {[%clk 00:28:18]}
{[%emt 00:01:13]} Qc7 {[%clk 00:00:36]} {[%emt 00:00:29]} 38. Kg1 {[%clk
00:26:58]} {[%emt 00:01:49]} Rab8 {[%clk 00:00:33]} {[%emt 00:00:34]} 39. g3
{[%clk 00:26:53]} {[%emt 00:00:35]} e5 {[%clk 00:00:32]} {[%emt 00:00:31]} 40.
Bb2 {[%clk 00:26:06]} {[%emt 00:01:16]} Re8 {[%clk 00:00:33]} {[%emt 00:00:29]}
41. Nc3 {[%clk 00:26:22]} {[%emt 00:00:13]} e4 {[%clk 00:00:33]} {[%emt
00:00:31]} 42. Nxe4 {[%clk 00:26:26]} {[%emt 00:00:26]} Ne5 {[%clk 00:00:41]}
{[%emt 00:00:21]} 43. Qg2 {[%clk 00:25:55]} {[%emt 00:01:01]} Be7 {[%clk
00:00:45]} {[%emt 00:00:26]} 44. Nc3 {[%clk 00:25:37]} {[%emt 00:00:48]} Qc6
{[%clk 00:00:32]} {[%emt 00:00:43]} 45. Nd5 {[%clk 00:25:35]} {[%emt 00:00:31]}
Bf6 {[%clk 00:00:33]} {[%emt 00:00:29]} 46. Bxe5 {[%clk 00:25:52]} {[%emt
00:00:13]} 1-0

[Event "Open Gent FIDE-rated 2023"]
[Site "Gent, Belgium"]
[Date "2023.07.19"]
[Round "9.3"]
[White "Stone, Andrew"]
[Black "van Osch, Mees"]
[Result "1/2-1/2"]
[TimeControl "90'+30''"]
[BlackTitle "FM"]
[WhiteElo "2102"]
[BlackElo "2320"]

1. Nf3 {[%clk 01:30:56]} {[%emt 00:00:03]} Nf6 {[%clk 01:30:57]} {[%emt
00:00:04]} 2. c4 {[%clk 01:31:17]} {[%emt 00:00:08]} g6 {[%clk 01:31:18]}
{[%emt 00:00:10]} 3. g3 {[%clk 01:31:38]} {[%emt 00:00:09]} Bg7 {[%clk
01:31:46]} {[%emt 00:00:03]} 4. Bg2 {[%clk 01:32:00]} {[%emt 00:00:07]} O-O
{[%clk 01:32:13]} {[%emt 00:00:04]} 5. O-O {[%clk 01:32:22]} {[%emt 00:00:07]}
d6 {[%clk 01:32:42]} {[%emt 00:00:02]} 6. d4 {[%clk 01:32:40]} {[%emt
00:00:11]} Nbd7 {[%clk 01:33:08]} {[%emt 00:00:04]} 7. Nc3 {[%clk 01:32:54]}
{[%emt 00:00:16]} e5 {[%clk 01:33:34]} {[%emt 00:00:05]} 8. e4 {[%clk
01:32:27]} {[%emt 00:00:56]} exd4 {[%clk 01:33:57]} {[%emt 00:00:07]} 9. Nxd4
{[%clk 01:32:52]} {[%emt 00:00:05]} Re8 {[%clk 01:34:26]} {[%emt 00:00:02]} 10.
Re1 {[%clk 01:30:01]} {[%emt 00:03:19]} Nc5 {[%clk 01:34:53]} {[%emt 00:00:04]}
11. h3 {[%clk 01:28:32]} {[%emt 00:01:59]} Bd7 {[%clk 01:33:05]} {[%emt
00:02:19]} 12. Bf4 {[%clk 01:18:02]} {[%emt 00:10:58]} h6 {[%clk 01:33:22]}
{[%emt 00:00:13]} 13. Rb1 {[%clk 01:09:19]} {[%emt 00:09:13]} a5 {[%clk
01:33:35]} {[%emt 00:00:18]} 14. b3 {[%clk 01:07:57]} {[%emt 00:01:52]} Nh7
{[%clk 01:25:42]} {[%emt 00:08:23]} 15. Qd2 {[%clk 00:52:21]} {[%emt 00:16:05]}
Bxd4 {[%clk 00:44:02]} {[%emt 00:42:11]} 16. Qxd4 {[%clk 00:52:34]} {[%emt
00:00:17]} Ne6 {[%clk 00:44:26]} {[%emt 00:00:06]} 17. Qd2 {[%clk 00:52:19]}
{[%emt 00:00:44]} Nxf4 {[%clk 00:44:48]} {[%emt 00:00:09]} 18. Qxf4 {[%clk
00:52:34]} {[%emt 00:00:14]} Qf6 {[%clk 00:41:46]} {[%emt 00:03:33]} 19. Qxf6
{[%clk 00:48:04]} {[%emt 00:05:00]} Nxf6 {[%clk 00:42:12]} {[%emt 00:00:04]} 20.
e5 {[%clk 00:48:09]} {[%emt 00:00:24]} Rxe5 {[%clk 00:30:18]} {[%emt 00:12:25]}
21. Rxe5 {[%clk 00:48:13]} {[%emt 00:00:26]} dxe5 {[%clk 00:30:43]} {[%emt
00:00:04]} 22. Bxb7 {[%clk 00:48:35]} {[%emt 00:00:08]} Re8 {[%clk 00:30:58]}
{[%emt 00:00:16]} 23. Bg2 {[%clk 00:47:36]} {[%emt 00:01:29]} e4 {[%clk
00:31:15]} {[%emt 00:00:13]} 24. Nd1 {[%clk 00:43:37]} {[%emt 00:04:28]} Bc6
{[%clk 00:30:43]} {[%emt 00:01:03]} 25. Ne3 {[%clk 00:41:28]} {[%emt 00:02:38]}
Nd7 {[%clk 00:24:22]} {[%emt 00:06:51]} 26. Rd1 {[%clk 00:35:35]} {[%emt
00:06:22]} Ne5 {[%clk 00:22:08]} {[%emt 00:02:45]} 27. Nd5 {[%clk 00:35:36]}
{[%emt 00:00:28]} Bxd5 {[%clk 00:22:18]} {[%emt 00:00:21]} 28. Rxd5 {[%clk
00:36:00]} {[%emt 00:00:05]} Nf3+ {[%clk 00:20:42]} {[%emt 00:02:06]} 29. Bxf3
{[%clk 00:29:06]} {[%emt 00:07:24]} exf3 {[%clk 00:21:11]} {[%emt 00:00:02]} 30.
g4 {[%clk 00:29:09]} {[%emt 00:00:27]} Re1+ {[%clk 00:20:24]} {[%emt 00:01:17]}
31. Kh2 {[%clk 00:29:33]} {[%emt 00:00:05]} Re2 {[%clk 00:20:51]} {[%emt
00:00:04]} 32. Rxa5 {[%clk 00:29:14]} {[%emt 00:00:50]} Rxf2+ {[%clk 00:21:01]}
{[%emt 00:00:20]} 33. Kg3 {[%clk 00:29:33]} {[%emt 00:00:10]} Rc2 {[%clk
00:16:35]} {[%emt 00:04:56]} 34. Kxf3 {[%clk 00:29:32]} {[%emt 00:00:29]} Rc3+
{[%clk 00:17:03]} {[%emt 00:00:03]} 35. Kg2 {[%clk 00:28:40]} {[%emt 00:01:22]}
Rc2+ {[%clk 00:17:25]} {[%emt 00:00:09]} 36. Kg3 {[%clk 00:28:28]} {[%emt
00:00:41]} Rc3+ {[%clk 00:17:49]} {[%emt 00:00:06]} 37. Kg2 {[%clk 00:28:36]}
{[%emt 00:00:22]} Rc2+ {[%clk 00:18:15]} {[%emt 00:00:04]} 1/2-1/2

[Event "Open Gent FIDE-rated 2023"]
[Site "Gent, Belgium"]
[Date "2023.07.19"]
[Round "9.4"]
[White "Bekker, Stefan"]
[Black "De Block, Yordi"]
[Result "1-0"]
[TimeControl "90'+30''"]
[WhiteTitle "FM"]
[WhiteElo "2286"]
[BlackElo "2082"]

1. Nf3 {[%clk 01:30:56]} {[%emt 00:00:03]} Nf6 {[%clk 01:28:58]} {[%emt
00:02:03]} 2. g3 {[%clk 01:31:17]} {[%emt 00:00:09]} b6 {[%clk 01:29:17]}
{[%emt 00:00:11]} 3. Bg2 {[%clk 01:31:22]} {[%emt 00:00:25]} Bb7 {[%clk
01:29:39]} {[%emt 00:00:09]} 4. c4 {[%clk 01:30:50]} {[%emt 00:01:01]} e6
{[%clk 01:30:02]} {[%emt 00:00:07]} 5. b3 {[%clk 01:30:28]} {[%emt 00:00:51]}
c5 {[%clk 01:29:29]} {[%emt 00:01:03]} 6. O-O {[%clk 01:29:36]} {[%emt
00:01:21]} Be7 {[%clk 01:25:45]} {[%emt 00:04:15]} 7. Nc3 {[%clk 01:28:43]}
{[%emt 00:01:23]} d5 {[%clk 01:22:04]} {[%emt 00:04:11]} 8. cxd5 {[%clk
01:26:26]} {[%emt 00:02:47]} Nxd5 {[%clk 01:21:36]} {[%emt 00:00:58]} 9. Bb2
{[%clk 01:24:00]} {[%emt 00:02:56]} Nxc3 {[%clk 01:20:54]} {[%emt 00:01:12]} 10.
dxc3 {[%clk 01:20:03]} {[%emt 00:04:27]} O-O {[%clk 01:19:15]} {[%emt
00:02:09]} 11. Qc2 {[%clk 01:20:08]} {[%emt 00:00:26]} Bf6 {[%clk 01:16:25]} 12.
Ng5 {[%clk 01:20:08]} 1-0